bitfinex-derivatives/quotes_ETHF0:USTF0_20230104
["timestamp","ask_amount","ask_price","bid_price","bid_amount"]
[1672844930832,8.47494403,1246.6,1246.5,1.5]
[1672844931041,8.47494403,1246.6,1246.4,1.6]
[1672844931353,2.37694778,1246.5,1246.4,1.6]
[1672844932096,10.85189181,1246.6,1246.4,1.6]
[1672844932302,2.37694778,1246.5,1246.4,1.6]
[1672844933145,5.34459181,1246.5,1246.3,3.107]
[1672844933464,5.34459181,1246.5,1246.2,1.607]
[1672844933675,2.37694778,1246.4,1246.2,1.607]
[1672844935565,5.38424778,1246.4,1246.1,5.28676994]
[1672844935781,4.6143,1246.4,1246.2,1.19076994]
[1672844936094,5.34459181,1246.3,1246.1,2.5]
[1672844936300,2.37694778,1246.3,1246.1,2.5]
[1672844936512,5.34459181,1246.3,1246.1,2.5]
[1672844936717,2.37694778,1246.3,1246.1,4.107]
[1672844938410,2.37694778,1246.2,1246.1,4.107]
[1672844942499,2.37694778,1246.2,1246.1,2.5]
[1672844943133,2.38391432,1246.2,1246.1,2.5]
[1672844943763,5.35155835,1246.2,1246.1,2.5]
[1672844944082,5.35150449,1246.2,1246.1,2.5]
[1672844944295,10.74263518,1246.2,1246.1,2.5]
[1672844944603,5.35150449,1246.2,1246.0,2.78876994]
[1672844944813,5.09013589,1246.1,1245.7,4.57692484]
[1672844945029,2.38299541,1245.8,1245.7,4.57692484]
[1672844945232,5.36173968,1245.9,1245.7,1.6]
[1672844945441,5.35951844,1245.9,1245.7,1.6]
[1672844945660,5.35951844,1246.0,1245.8,1.607]
[1672844945861,2.38077417,1246.0,1245.9,4.1]
[1672844946182,2.97623044,1246.0,1245.9,1.6]
[1672844946386,2.97623044,1246.0,1245.8,1.598]
[1672844946604,2.38089182,1245.9,1245.8,1.598]
[1672844946813,2.38089182,1245.9,1245.8,4.098]
[1672844947126,4.88089182,1246.0,1245.8,4.098]
[1672844947332,4.88089182,1246.0,1245.7,2.79776994]
[1672844947544,4.88089182,1246.0,1245.6,4.11876111]
[1672844947545,2.37967084,1245.9,1245.6,4.58392484]
[1672844947751,2.37967084,1245.9,1245.7,4.107]
[1672844948075,2.37967084,1245.9,1245.8,2.5]
[1672844948701,2.37967084,1245.9,1245.7,4.107]
[1672844948702,9.96120128,1245.9,1245.6,4.47692484]
[1672844948917,9.96120128,1245.9,1245.6,1.5]
[1672844948918,2.37950872,1245.8,1245.6,1.5]
[1672844949125,8.36303916,1245.9,1245.6,4.29776994]
[1672844949334,5.38680872,1245.9,1245.8,1.607]
[1672844949544,2.37950872,1245.9,1245.6,10.68576994]
[1672844949754,2.37950872,1245.9,1245.8,1.607]
[1672844950381,2.37950872,1245.9,1245.7,1.607]
[1672844950909,5.38680872,1245.9,1245.7,1.607]
[1672844951438,2.37950872,1245.8,1245.6,1.596]
[1672844951643,6.99280872,1245.9,1245.7,1.5]
[1672844952165,9.96903916,1245.9,1245.6,1.596]
[1672844952379,3.0073,1245.7,1245.5,1.607]
[1672844952586,5.38680872,1245.7,1245.4,1.607]
[1672844952796,4.6053,1245.5,1245.2,6.9202337]
[1672844953108,4.6053,1245.5,1245.2,2.8058337]
[1672844953315,1.607,1245.4,1245.0,3.9198337]
[1672844953531,1.607,1245.3,1245.0,1.111]
[1672844953744,1.607,1245.3,1245.1,2.5]
[1672844954484,6.99380872,1245.3,1245.0,1.111]
[1672844954681,2.5,1245.2,1245.0,1.111]
[1672844954897,3.0073,1245.1,1245.0,1.111]
[1672844955108,5.38680872,1245.1,1245.0,1.111]
[1672844955313,3.0073,1245.1,1245.0,1.111]
[1672844955528,6.98580872,1245.3,1245.0,1.111]
[1672844955738,2.5,1245.2,1245.0,1.111]
[1672844955951,2.37950872,1245.6,1245.1,4.6143]
[1672844956155,2.37950872,1245.7,1245.1,3.0073]
[1672844956371,2.37950872,1245.7,1245.3,3.0073]
[1672844956577,5.38680872,1245.8,1245.3,3.0073]
[1672844956791,5.38680872,1245.8,1245.6,1.607]
[1672844957103,5.35573916,1245.9,1245.7,1.607]
[1672844957314,2.37950872,1245.9,1245.7,1.607]
[1672844957845,8.36303916,1246.0,1245.7,1.607]
[1672844958051,2.37950872,1246.0,1245.8,1.596]
[1672844958257,2.37950872,1246.1,1245.9,1.607]
[1672844958577,5.3600909,1246.2,1245.9,1.607]
[1672844958578,4.76336918,1246.2,1245.9,1.607]
[1672844958791,4.76336918,1246.2,1246.0,2.5]
[1672844958991,2.38386046,1246.2,1246.1,1.598]
[1672844959421,4.76336918,1246.2,1245.9,1.607]
[1672844959631,2.5,1246.1,1245.9,1.607]
[1672844960166,14.48150872,1246.1,1245.7,1.607]
[1672844960375,14.48150872,1246.1,1245.6,1.1814]
[1672844960376,6.99380872,1246.0,1245.6,1.607]
[1672844960794,0.5,1245.9,1245.7,2.5]
[1672844961107,0.5,1245.9,1245.6,1.607]
[1672844961108,3.0073,1245.8,1245.4,3.107]
[1672844961318,1.607,1245.7,1245.4,3.107]
[1672844964262,3.0073,1245.8,1245.5,1.6]
[1672844965520,3.0073,1245.8,1245.7,1.607]
[1672844966046,5.38680872,1246.0,1245.7,1.607]
[1672844966254,0.5,1245.9,1245.7,1.607]
[1672844966468,3.0073,1246.0,1245.8,1.598]
[1672844966681,2.5,1246.1,1245.9,1.607]
[1672844967203,4.76336918,1246.2,1245.9,1.607]
[1672844967617,4.76336918,1246.2,1245.8,3.0073]
[1672844967618,2.38386046,1246.2,1246.1,2.5]
[1672844968255,2.38386046,1246.2,1246.1,4.1]
[1672844969930,2.38386046,1246.2,1246.1,1.6]
[1672844970146,2.38386046,1246.2,1245.9,4.096]
[1672844970669,4.76336918,1246.2,1245.9,4.096]
[1672844971084,2.38386046,1246.2,1245.9,4.096]
[1672844971302,4.76336918,1246.2,1245.9,4.096]
[1672844971832,2.38386046,1246.2,1245.9,4.096]
[1672844972253,4.76336918,1246.2,1245.9,4.096]
[1672844973503,7.73959962,1246.2,1245.9,4.096]
[1672844973932,4.76336918,1246.2,1245.9,4.096]
[1672844974343,4.76336918,1246.2,1246.0,1.607]
[1672844974974,2.38386046,1246.2,1246.0,1.607]
[1672844975188,4.76336918,1246.2,1246.0,1.607]
[1672844976243,2.38386046,1246.2,1246.0,1.607]
[1672844976662,4.76336918,1246.2,1246.0,1.607]
[1672844976983,2.38386046,1246.2,1246.0,1.607]
[1672844977193,2.38386046,1246.2,1245.9,2.5]
[1672844977406,2.38386046,1246.2,1246.0,1.607]
[1672844977922,1.18608224,1246.1,1246.0,1.607]
[1672844978140,1.68608224,1246.1,1245.9,4.104]
[1672844978450,1.18608224,1246.1,1245.9,4.104]
[1672844979077,3.5699427,1246.2,1246.0,1.607]
[1672844979295,3.5699427,1246.2,1246.0,4.6143]
[1672844979506,5.34959473,1246.2,1246.0,4.6143]
[1672844979812,2.38386046,1246.2,1246.1,1.6]
[1672844980229,2.38386046,1246.2,1246.1,9.595]
[1672844980440,1.18608224,1246.4,1246.3,2.5]
[1672844980656,1.18608224,1246.4,1246.3,7.1073]
[1672844980657,2.96573427,1246.4,1246.3,7.1073]
[1672844980868,1.77965203,1246.4,1246.3,4.107]
[1672844981282,2.96601786,1246.4,1246.3,4.107]
[1672844982452,1.18636583,1246.4,1246.3,4.107]
[1672844982762,1.18636583,1246.4,1246.3,7.1143]
[1672844983295,2.96601786,1246.5,1246.3,7.1143]
[1672844983501,2.96601786,1246.5,1246.4,1.6]
[1672844984757,1.18636583,1246.5,1246.4,11.19]
[1672844985493,2.96601786,1246.6,1246.4,11.19]
[1672844985817,1.77965203,1246.6,1246.5,4.6113]
[1672844986337,2.96487337,1246.6,1246.5,4.6113]
[1672844986760,1.18522134,1246.7,1246.5,4.6113]
[1672844986969,1.18522134,1246.7,1246.6,4.107]
[1672844987282,7.12717609,1246.8,1246.7,1.606]
[1672844987491,5.34752406,1246.8,1246.7,3.21]
[1672844988121,5.34752406,1246.8,1246.7,6.2173]
[1672844988329,4.16230272,1246.8,1246.7,6.2173]
[1672844988535,4.16230272,1246.8,1246.7,13.4443]
[1672844988753,3.5696193,1246.8,1246.7,21.4393]
[1672844988964,3.1578193,1246.8,1246.7,21.4393]
[1672844989175,2.96487337,1247.1,1246.7,21.4393]
[1672844989384,1.18522134,1247.1,1247.0,1.6]
[1672844989589,1.77965203,1247.2,1247.0,1.6]
[1672844989590,1.18522134,1247.2,1247.0,1.6]
[1672844990020,2.96487337,1247.2,1247.0,3.1]
[1672844990226,1.18522134,1247.2,1247.1,2.5]
[1672844990854,2.96487337,1247.2,1247.1,2.5]
[1672844991066,1.18522134,1247.2,1247.1,4.104]
[1672844991277,1.18522134,1247.3,1247.1,4.104]
[1672844991490,1.18522134,1247.3,1247.2,1.607]
[1672844991695,4.23004396,1247.4,1247.2,1.607]
[1672844992015,1.73004396,1247.4,1247.2,1.607]
[1672844992553,1.73004396,1247.4,1247.1,4.1]
[1672844992742,3.0073,1247.3,1247.1,4.1]
[1672844992958,2.5,1247.2,1247.1,4.1]
[1672844993378,3.5073,1247.3,1247.1,4.1]
[1672844993595,2.5,1247.2,1247.1,1.6]
[1672844994225,4.107,1247.2,1246.9,4.6113]
[1672844994432,4.107,1247.2,1246.9,1.604]
[1672844994647,4.6053,1247.1,1246.8,1.596]
[1672844995174,1.607,1247.0,1246.6,1.607]
[1672844995381,1.607,1247.0,1246.7,2.5]
[1672844995597,3.0073,1246.9,1246.7,2.5]
[1672844995800,1.591,1246.8,1246.5,4.6143]
[1672844996017,1.599,1246.8,1246.4,1.6]
[1672844996223,1.599,1246.8,1246.5,2.5]
[1672844996432,0.5,1246.7,1246.5,2.5]
[1672844996640,3.5073,1246.7,1246.4,2.5]
[1672844996850,5.1063,1246.7,1246.4,2.5]
[1672844997063,5.1063,1246.7,1246.3,1.607]
[1672844997689,5.1063,1246.7,1246.4,2.5]
[1672844997905,3.5073,1246.7,1246.4,4.096]
[1672844998427,6.99380872,1247.0,1246.6,1.607]
[1672844998752,2.5,1246.9,1246.7,1.5]
[1672844999695,3.5073,1247.0,1246.7,3.096]
[1672845000010,2.5,1246.9,1246.7,3.096]
[1672845000427,3.0073,1246.8,1246.6,1.607]
[1672845002202,3.0073,1246.8,1246.5,1.604]
[1672845002630,3.0073,1246.6,1246.5,1.596]
[1672845004314,3.0073,1246.8,1246.5,9.602]
[1672845004515,3.0073,1246.8,1246.7,1.607]
[1672845004732,3.0073,1246.8,1246.7,3.202]
[1672845005355,3.0073,1246.8,1246.7,1.607]
[1672845005985,3.0073,1246.8,1246.6,3.107]
[1672845006202,3.0073,1246.8,1246.6,1.607]
[1672845006406,6.99380872,1246.8,1246.4,4.107]
[1672845006625,3.0073,1246.6,1246.4,2.5]
[1672845007668,14.98080872,1246.8,1246.4,4.104]
[1672845007880,13.38180872,1246.8,1246.6,1.607]
[1672845009360,8.36303916,1246.8,1246.6,1.607]
[1672845009670,2.37950872,1246.7,1246.4,4.107]
[1672845009885,3.0073,1246.6,1246.4,4.107]
[1672845010088,3.0073,1246.6,1246.4,1.607]
[1672845010403,1.599,1246.5,1246.1,5.7624]
[1672845010607,1.599,1246.5,1246.1,1.607]
[1672845010817,3.0073,1246.4,1246.1,1.607]
[1672845011245,3.0073,1246.4,1246.2,4.107]
[1672845012192,5.38680872,1246.6,1246.3,9.599]
[1672845012397,2.37950872,1246.8,1246.5,1.6]
[1672845012608,3.0073,1246.7,1246.6,1.607]
[1672845012827,3.0073,1246.7,1246.5,1.5]
[1672845012828,0.5,1246.7,1246.5,1.5]
[1672845013137,2.37950872,1246.8,1246.5,1.5]
[1672845013338,2.37950872,1246.9,1246.7,1.607]
[1672845014919,2.37950872,1246.9,1246.8,1.596]
[1672845015128,2.37950872,1246.9,1246.8,4.096]
[1672845015451,2.37950872,1247.0,1246.8,4.096]
[1672845015662,2.37950872,1247.0,1246.9,1.607]
[1672845015872,2.37950872,1247.0,1246.8,4.1]
[1672845016395,2.37950872,1247.0,1246.9,1.598]
[1672845016599,4.87950872,1247.0,1246.9,1.598]
[1672845016814,2.37950872,1247.0,1246.9,1.598]
[1672845017027,4.87950872,1247.0,1246.9,1.598]
[1672845017441,4.87950872,1247.0,1246.7,1.607]
[1672845017442,7.85573916,1247.0,1246.8,1.607]
[1672845017654,7.85573916,1247.0,1246.9,2.5]
[1672845017860,7.85573916,1247.0,1246.8,1.607]
[1672845017861,7.85282316,1247.0,1246.8,1.607]
[1672845018074,2.37659272,1246.9,1246.8,1.607]
[1672845018699,7.85282316,1247.0,1246.8,1.607]
[1672845019127,2.37659272,1246.9,1246.8,1.607]
[1672845020815,5.38389272,1246.9,1246.8,1.607]
[1672845021966,8.36012316,1246.9,1246.8,1.607]
[1672845022277,5.98353044,1246.9,1246.7,1.607]
[1672845022497,2.37824626,1246.8,1246.7,1.607]
[1672845022692,5.98353044,1246.9,1246.7,3.214]
[1672845022693,5.38554626,1246.9,1246.7,3.214]
[1672845022906,2.37824626,1247.0,1246.8,11.102]
[1672845023119,2.97623044,1247.0,1246.9,1.598]
[1672845023331,2.87856664,1247.0,1246.9,1.598]
[1672845024072,3.47623044,1247.0,1246.9,1.598]
[1672845024485,5.35500533,1247.0,1246.9,1.598]
[1672845024697,2.37877489,1247.0,1246.9,1.598]
[1672845025219,5.35500533,1247.0,1246.9,1.598]
[1672845025428,2.37877489,1247.0,1246.9,1.598]
[1672845026903,2.37877489,1247.0,1246.9,3.197]
[1672845027222,2.37877489,1247.1,1246.9,3.197]
[1672845027423,5.35500533,1247.2,1247.0,9.602]
[1672845027638,2.37877489,1247.2,1247.1,3.206]
[1672845028052,2.37877489,1247.2,1247.1,5.706]
[1672845028584,2.37877489,1247.2,1247.1,13.701]
[1672845029430,2.37877489,1247.2,1247.1,5.706]
[1672845029637,2.37877489,1247.2,1247.1,4.106]
[1672845030372,2.76173044,1247.3,1247.1,1.606]
[1672845030589,2.76173044,1247.3,1247.0,1.6]
[1672845030794,2.37777541,1247.1,1247.0,1.6]
[1672845032371,2.37777541,1247.1,1247.0,1.607]
[1672845032580,2.37777541,1247.1,1247.0,9.602]
[1672845032787,2.37777541,1247.1,1247.0,1.607]
[1672845033629,2.37777541,1247.1,1247.0,9.602]
[1672845033940,2.37777541,1247.1,1247.0,1.607]
[1672845035935,2.37777541,1247.2,1247.0,1.607]
[1672845036146,2.37777541,1247.2,1247.1,1.6]
[1672845036469,0.5,1247.2,1247.1,1.6]
[1672845037825,4.06605121,1247.2,1247.1,1.6]
[1672845038033,0.5,1247.2,1247.1,1.6]
[1672845041086,6.32778165,1247.3,1247.1,1.6]
[1672845041292,0.5,1247.2,1247.1,1.6]
[1672845042875,4.06605121,1247.2,1247.1,1.6]
[1672845043298,4.06605121,1247.2,1247.0,1.607]
[1672845043496,3.0073,1247.1,1246.8,1.607]
[1672845043707,2.37840979,1246.9,1246.8,1.607]
[1672845044234,2.37840979,1246.9,1246.8,4.107]
[1672845044442,2.37840979,1247.0,1246.8,4.107]
[1672845044655,2.37840979,1247.0,1246.9,3.107]
[1672845045704,2.37840979,1247.0,1246.9,4.706]
[1672845045910,2.37840979,1247.1,1246.9,4.706]
[1672845046122,2.37840979,1247.1,1247.0,1.607]
[1672845046548,0.5,1247.2,1247.0,1.607]
[1672845046761,0.5,1247.2,1247.1,1.607]
[1672845047285,7.07335121,1247.2,1247.1,1.607]
[1672845048226,3.5073,1247.2,1247.1,1.607]
[1672845049287,7.66769308,1247.2,1246.9,1.607]
[1672845049599,3.0073,1247.0,1246.9,1.607]
[1672845050014,3.0073,1247.0,1246.8,4.107]
[1672845050226,2.3806034,1246.9,1246.8,4.107]
[1672845051176,2.97575122,1246.9,1246.8,4.107]
[1672845053376,6.57335121,1247.0,1246.8,1.607]
[1672845053585,6.57335121,1247.0,1246.7,4.094]
[1672845053586,3.56605121,1246.9,1246.7,4.094]
[1672845053797,3.56605121,1246.9,1246.7,1.594]
[1672845054006,2.5,1246.8,1246.7,1.594]
[1672845054426,5.5073,1246.8,1246.7,1.594]
[1672845056112,9.07335121,1246.8,1246.5,2.8058337]
[1672845056319,3.0073,1246.6,1246.5,2.5]
[1672845056747,5.98867227,1246.6,1246.5,2.5]
[1672845057482,8.37244478,1246.6,1246.5,2.5]
[1672845057696,8.37244478,1246.6,1246.5,4.107]
[1672845058112,5.39107251,1246.6,1246.5,4.107]
[1672845058326,8.37244478,1246.6,1246.5,4.107]
[1672845058641,5.98867227,1246.6,1246.5,4.107]
[1672845059056,5.39109163,1246.6,1246.5,4.107]
[1672845059796,8.3724639,1246.6,1246.5,4.107]
[1672845060011,5.98867227,1246.6,1246.5,4.107]
[1672845060217,3.0073,1246.6,1246.5,4.107]
[1672845060632,5.98540125,1246.6,1246.5,4.107]
[1672845061052,2.97810125,1246.6,1246.5,4.107]
[1672845062108,5.98540125,1246.6,1246.5,4.107]
[1672845062315,3.0073,1246.6,1246.5,4.107]
[1672845063372,3.0073,1246.6,1246.5,1.607]
[1672845063789,6.57335121,1246.6,1246.5,1.607]
[1672845063997,5.98201115,1246.6,1246.5,1.607]
[1672845064214,3.0073,1246.6,1246.4,4.096]
[1672845064421,3.0073,1246.6,1246.4,1.596]
[1672845064630,3.56605121,1246.5,1246.2,1.607]
[1672845064950,5.98151597,1246.3,1246.1,1.607]
[1672845065156,2.37925857,1246.2,1246.1,4.107]
[1672845066415,1.78143857,1246.2,1246.1,1.607]
[1672845066735,1.78143857,1246.2,1246.0,1.6]
[1672845066736,2.37925857,1246.2,1246.0,1.6]
[1672845066938,4.78860692,1246.1,1246.0,1.6]
[1672845067152,3.0073,1246.1,1246.0,1.6]
[1672845068411,3.0073,1246.1,1246.0,3.214]
[1672845068623,4.78860692,1246.3,1246.0,11.209]
[1672845068833,4.78860692,1246.3,1246.2,1.6]
[1672845069889,3.0073,1246.3,1246.2,1.6]
[1672845071155,4.78860692,1246.5,1246.2,11.196]
[1672845071470,4.78860692,1246.5,1246.4,1.6]
[1672845071680,5.38655857,1246.5,1246.3,3.107]
[1672845071890,4.78621591,1246.5,1246.3,3.107]
[1672845073257,4.78621591,1246.5,1246.3,1.5]
[1672845073568,4.78621591,1246.5,1246.4,1.604]
[1672845073989,4.78621591,1246.5,1246.4,1.607]
[1672845074731,5.28621591,1246.5,1246.4,1.607]
[1672845074938,5.88655857,1246.5,1246.4,1.607]
[1672845075468,5.88655857,1246.5,1246.3,3.1]
[1672845075673,1.7786886,1246.4,1246.3,3.1]
[1672845076299,1.7786886,1246.4,1246.3,1.6]
[1672845078828,4.15794717,1246.4,1246.2,1.607]
[1672845079039,3.0073,1246.3,1246.2,1.607]
[1672845079242,4.7859886,1246.3,1246.2,1.607]
[1672845079446,4.7859886,1246.3,1246.1,4.107]
[1672845080287,4.7859886,1246.3,1246.1,1.607]
[1672845080504,15.16024717,1246.3,1246.1,1.607]
[1672845080929,12.7809886,1246.3,1246.1,1.607]
[1672845081550,15.16024717,1246.3,1246.1,1.607]
[1672845081975,1.7786886,1246.2,1245.9,4.098]
[1672845082185,3.0073,1246.1,1245.9,4.098]
[1672845086184,11.0023,1246.1,1245.9,1.598]
[1672845086395,1.7786886,1246.0,1245.8,1.607]
[1672845086603,3.0073,1245.9,1245.7,4.107]
[1672845087019,2.5,1245.8,1245.7,4.107]
[1672845087440,4.7859886,1245.9,1245.7,4.107]
[1672845087965,7.16524717,1245.9,1245.7,4.107]
[1672845088176,2.5,1245.8,1245.7,4.107]
[1672845088589,4.2786886,1245.8,1245.6,1.607]
[1672845088801,3.0073,1245.7,1245.6,1.607]
[1672845090268,11.0023,1245.7,1245.5,3.107]
[1672845091434,11.0023,1245.7,1245.5,1.607]
[1672845091645,0.5,1245.6,1245.4,1.604]
[1672845091851,3.0073,1245.5,1245.3,4.1]
[1672845092062,3.0073,1245.5,1245.3,2.5]
[1672845092489,3.0073,1245.5,1245.2,4.098]
[1672845092803,10.102,1245.6,1245.3,2.5]
[1672845093013,3.0073,1245.4,1245.3,2.5]
[1672845093223,3.0073,1245.4,1245.2,4.098]
[1672845093438,3.0073,1245.4,1245.2,2.5]
[1672845094908,4.6153,1245.4,1245.2,2.49512748]
[1672845095532,3.0073,1245.4,1245.2,2.49512748]
[1672845096799,3.00376501,1245.4,1245.2,2.49512748]
[1672845097425,12.60676501,1245.4,1245.1,3.094]
[1672845097642,3.0073,1245.2,1245.0,5.206]
[1672845097850,3.0073,1245.2,1245.0,2.706]
[1672845098792,12.6073,1245.2,1245.0,1.111]
[1672845099422,2.5,1245.1,1245.0,1.111]
[1672845100050,3.0073,1245.2,1245.0,2.719]
[1672845100259,3.0073,1245.2,1245.1,1.594]
[1672845100474,3.0073,1245.4,1245.1,1.594]
[1672845100684,5.5073,1245.4,1245.3,1.608]
[1672845100890,4.7859886,1245.6,1245.3,1.608]
[1672845101100,5.5073,1245.6,1245.5,1.595]
[1672845101312,13.5023,1245.6,1245.5,1.595]
[1672845101731,5.5073,1245.6,1245.5,1.595]
[1672845102472,3.0073,1245.6,1245.5,1.595]
[1672845103940,3.0073,1245.6,1245.4,1.605]
[1672845104365,0.5,1245.5,1245.4,1.605]
[1672845105203,10.099,1245.5,1245.2,1.594]
[1672845105418,3.0073,1245.3,1245.2,1.594]
[1672845105629,4.6153,1245.3,1245.1,2.5]
[1672845105839,12.6103,1245.3,1245.0,5.206]
[1672845106048,3.0073,1245.1,1245.0,5.206]
[1672845106471,9.603,1245.3,1245.0,6.823]
[1672845106472,3.0073,1245.3,1245.0,6.823]
[1672845106676,3.0073,1245.3,1245.2,1.595]
[1672845107097,3.0073,1245.3,1245.2,3.203]
[1672845110043,3.0073,1245.3,1245.2,1.608]
[1672845110254,3.0073,1245.3,1245.1,3.105]
[1672845110676,3.0073,1245.3,1245.1,1.605]
[1672845110887,11.0023,1245.3,1245.0,2.719]
[1672845111093,3.0073,1245.1,1245.0,1.111]
[1672845113409,3.0073,1245.1,1245.0,2.719]
[1672845113831,2.95873812,1245.4,1245.0,2.719]
[1672845114038,3.0073,1245.3,1245.0,1.111]
[1672845114243,5.96603812,1245.5,1245.0,1.111]
[1672845114457,4.18734952,1245.5,1245.4,1.608]
[1672845114874,3.0073,1245.5,1245.4,3.216]
[1672845115510,4.2786886,1245.7,1245.4,3.216]
[1672845115511,5.96603812,1245.7,1245.4,3.216]
[1672845115724,4.18734952,1245.7,1245.6,1.596]
[1672845115934,3.0073,1245.7,1245.6,1.596]
[1672845116352,2.95873812,1245.8,1245.6,3.204]
[1672845116563,1.18004952,1245.9,1245.7,11.206]
[1672845116775,2.95873812,1246.0,1245.8,3.199]
[1672845116989,1.18004952,1246.0,1245.9,1.608]
[1672845117411,2.95873812,1246.0,1245.9,1.608]
[1672845117622,2.95873812,1246.0,1245.9,4.108]
[1672845118052,1.18004952,1246.0,1245.9,4.108]
[1672845118263,1.74658459,1246.0,1245.9,13.709]
[1672845118473,2.37925857,1246.4,1245.9,20.917]
[1672845118678,2.37925857,1246.4,1246.3,3.211]
[1672845121208,8.36077454,1246.5,1246.3,3.211]
[1672845121515,8.36077454,1246.5,1246.4,1.601]
[1672845121733,5.98151597,1246.5,1246.4,1.601]
[1672845121942,8.35047293,1246.5,1246.4,1.601]
[1672845122351,5.98151597,1246.5,1246.4,1.601]
[1672845122887,5.37520361,1246.5,1246.4,1.601]
[1672845124361,10.84941958,1246.5,1246.4,1.601]
[1672845124882,7.87520361,1246.5,1246.4,1.601]
[1672845125619,18.08451597,1246.5,1246.1,1.593]
[1672845125934,3.0073,1246.2,1246.1,1.604]
[1672845126564,2.36703413,1246.4,1246.1,1.604]
[1672845126770,3.0073,1246.4,1246.2,3.097]
[1672845127506,11.0023,1246.4,1246.1,1.596]
[1672845127714,3.0073,1246.2,1246.1,1.596]
[1672845128787,3.0073,1246.2,1246.0,1.603]
[1672845128991,3.0073,1246.2,1245.9,1.601]
[1672845129204,3.0073,1246.2,1245.8,4.108]
[1672845129205,3.0073,1246.0,1245.8,4.108]
[1672845129409,3.0073,1246.0,1245.7,1.601]
[1672845130880,0.5,1245.9,1245.7,1.601]
[1672845131090,3.0073,1245.8,1245.6,4.108]
[1672845131513,3.0073,1245.8,1245.6,2.5]
[1672845131931,2.5,1245.7,1245.6,2.5]
[1672845132349,3.0073,1245.8,1245.6,2.5]
[1672845132564,3.0073,1246.0,1245.7,1.602]
[1672845132783,5.5073,1246.0,1245.7,1.602]
[1672845132991,0.5,1245.9,1245.8,1.5]
[1672845133513,5.5073,1246.0,1245.8,1.5]
[1672845135198,3.0073,1246.0,1245.8,1.5]
[1672845135403,3.0073,1246.0,1245.8,3.108]
[1672845136240,0.5,1245.9,1245.8,3.108]
[1672845136656,0.5,1245.9,1245.8,1.608]
[1672845137091,0.5,1245.9,1245.7,1.608]
[1672845137289,0.5,1245.9,1245.8,1.5]
[1672845137500,3.0073,1246.0,1245.8,1.5]
[1672845138558,0.5,1245.9,1245.8,1.5]
[1672845138878,0.5,1245.9,1245.7,1.608]
[1672845139191,3.0073,1245.8,1245.7,1.608]
[1672845139819,3.0073,1246.0,1245.7,1.608]
[1672845140031,3.0073,1246.0,1245.9,1.601]
[1672845141395,2.97421597,1246.3,1245.9,3.209]
[1672845141396,2.36703413,1246.3,1245.9,3.209]
[1672845141606,4.86703413,1246.3,1246.2,1.608]
[1672845141823,7.87433413,1246.3,1246.2,1.608]
[1672845142352,7.87433413,1246.3,1246.0,1.601]
[1672845142559,3.0073,1246.1,1246.0,1.601]
[1672845142774,3.0073,1246.1,1245.9,1.608]
[1672845144024,2.36703413,1246.3,1246.0,1.596]
[1672845144231,3.0073,1246.3,1246.2,1.608]
[1672845144450,3.0073,1246.3,1246.2,1.601]
[1672845144657,3.0073,1246.3,1246.2,4.101]
[1672845145178,5.37433413,1246.5,1246.2,4.101]
[1672845145388,3.0073,1246.5,1246.4,1.608]
[1672845146442,2.36703413,1246.6,1246.4,1.608]
[1672845146652,2.36703413,1246.6,1246.5,2.5]
[1672845148435,2.36703413,1246.6,1246.5,5.705]
[1672845148646,5.37433413,1246.7,1246.5,5.705]
[1672845148856,5.37433413,1246.7,1246.6,1.601]
[1672845149070,0.5,1246.6,1246.5,4.108]
[1672845149806,8.34795772,1246.7,1246.5,4.108]
[1672845150119,5.37374175,1246.7,1246.5,4.108]
[1672845150548,5.37374175,1246.7,1246.6,1.593]
[1672845151601,3.0073,1246.7,1246.6,1.593]
[1672845152443,5.37374175,1246.7,1246.6,1.593]
[1672845154326,8.34795772,1246.7,1246.6,1.593]
[1672845154755,5.37374175,1246.7,1246.6,1.593]
[1672845155380,8.34795772,1246.7,1246.6,1.593]
[1672845156115,5.37374175,1246.7,1246.6,1.593]
[1672845156328,5.98151597,1246.7,1246.6,1.593]
[1672845156541,8.35416798,1246.7,1246.6,1.593]
[1672845156753,5.37995201,1246.7,1246.6,1.593]
[1672845157809,2.37265201,1246.7,1246.6,1.593]
[1672845158220,5.37995201,1246.8,1246.6,1.593]
[1672845158430,5.37995201,1246.8,1246.7,1.603]
[1672845158857,3.0073,1246.8,1246.7,1.603]
[1672845159375,5.37995201,1246.8,1246.7,1.603]
[1672845159795,2.37265201,1246.9,1246.8,1.608]
[1672845160005,2.37265201,1246.9,1246.8,3.216]
[1672845160215,3.62960005,1246.9,1246.8,3.216]
[1672845160427,4.12960005,1246.9,1246.8,3.216]
[1672845160848,4.12960005,1246.9,1246.8,1.603]
[1672845162852,4.11776846,1246.9,1246.8,1.603]
[1672845163067,4.11776846,1246.9,1246.7,1.596]
[1672845163275,2.36990451,1246.8,1246.7,1.596]
[1672845163485,5.37720451,1246.8,1246.7,1.596]
[1672845166110,5.96968438,1246.8,1246.7,1.596]